bitfinex/quotes_BTCUSD_20220303
["timestamp","ask_amount","ask_price","bid_price","bid_amount"]
[1646321234300,0.0003977,43223.0,43222.0,0.399721]
[1646321234699,0.057874,43233.0,43223.0,0.089655]
[1646321234898,0.057874,43233.0,43223.0,0.132355]
[1646321235100,0.009258,43225.0,43224.0,0.357021]
[1646321235299,0.17011527,43229.0,43224.0,0.357021]
[1646321235701,0.3,43228.0,43217.0,0.006]
[1646321235900,0.3,43228.0,43219.0,0.25684561]
[1646321236098,0.3,43228.0,43212.0,0.357021]
[1646321236453,0.3,43228.0,43212.0,0.004]
[1646321236647,0.17290853,43217.0,43212.0,0.004]
[1646321236848,0.138773,43225.0,43213.0,0.357021]
[1646321237047,0.057891,43226.0,43212.0,0.06188766]
[1646321237248,9.942e-05,43224.0,43212.0,0.06188766]
[1646321237650,9.942e-05,43224.0,43212.0,0.004]
[1646321237849,9.942e-05,43224.0,43213.0,0.089761]
[1646321237850,0.19636875,43219.0,43213.0,0.089761]
[1646321238054,0.19636875,43219.0,43210.0,0.23905447]
[1646321238250,0.19636875,43219.0,43207.0,0.11576905]
[1646321238451,0.19636875,43219.0,43208.0,0.089784]
[1646321238652,0.24926364,43219.0,43208.0,0.089784]
[1646321238852,0.35993781,43218.0,43207.0,0.004]
[1646321239054,0.38493781,43218.0,43207.0,0.004]
[1646321239252,0.23319036,43212.0,43207.0,0.004]
[1646321239450,0.1427,43217.0,43207.0,0.004]
[1646321239651,0.1427,43217.0,43193.0,0.48314791]
[1646321239950,0.02299,43214.0,43194.0,0.357021]
[1646321240194,0.02299,43214.0,43196.0,0.089971]
[1646321240405,0.02299,43214.0,43196.0,0.389971]
[1646321240599,0.057904,43215.0,43196.0,0.389971]
[1646321240799,0.057904,43215.0,43203.0,0.18863883]
[1646321241198,0.057904,43215.0,43196.0,0.3]
[1646321241199,0.21642308,43212.0,43201.0,0.05790166]
[1646321241399,0.21642308,43212.0,43202.0,0.357021]
[1646321241598,0.21642308,43212.0,43202.0,0.59797615]
[1646321242400,0.21642308,43212.0,43207.0,0.21363502]
[1646321242600,0.1,43217.0,43209.0,0.20407935]
[1646321242807,0.025,43218.0,43211.0,0.357012]
[1646321243000,0.025,43218.0,43212.0,0.3]
[1646321243202,0.057898,43219.0,43210.0,0.357021]
[1646321243401,0.057898,43219.0,43215.0,0.20860328]
[1646321244055,0.057898,43219.0,43204.0,0.357021]
[1646321244254,0.057898,43219.0,43209.0,0.089851]
[1646321244454,0.057898,43219.0,43215.0,0.002]
[1646321245557,0.057898,43219.0,43208.0,0.00969581]
[1646321245759,0.057898,43219.0,43209.0,0.36863116]
[1646321245957,0.21687168,43219.0,43210.0,0.01030006]
[1646321246157,0.173701,43222.0,43211.0,0.00983049]
[1646321246357,0.173701,43222.0,43212.0,0.01041834]
[1646321246557,0.173701,43222.0,43212.0,0.27944963]
[1646321246756,0.173701,43222.0,43213.0,0.01296388]
[1646321246956,0.009262,43220.0,43212.0,0.27707753]
[1646321247157,0.0579,43218.0,43213.0,0.36968537]
[1646321247357,0.0579,43218.0,43214.0,0.089751]
[1646321247557,0.0579,43218.0,43215.0,0.357021]
[1646321247803,0.0579,43218.0,43207.0,0.00962916]
[1646321248003,0.0579,43218.0,43208.0,0.00965818]
[1646321248204,0.0579,43218.0,43214.0,0.21147768]
[1646321248407,0.0579,43218.0,43207.0,0.005]
[1646321248603,0.0579,43218.0,43208.0,0.357021]
[1646321248805,0.22970894,43218.0,43208.0,0.00938645]
[1646321249003,0.22970894,43218.0,43209.0,0.01196946]
[1646321249004,0.0579,43218.0,43209.0,0.01196946]
[1646321249203,0.0579,43218.0,43210.0,0.01252997]
[1646321249406,0.0579,43218.0,43207.0,0.005]
[1646321249604,0.0579,43218.0,43208.0,0.357021]
[1646321249805,0.0579,43218.0,43208.0,0.00919444]
[1646321250005,0.15,43216.0,43202.0,0.357021]
[1646321250203,0.20446296,43213.0,43203.0,0.357021]
[1646321250405,0.057912,43210.0,43204.0,0.357021]
[1646321250602,0.057912,43210.0,43206.0,0.357013]
[1646321250802,0.057912,43210.0,43206.0,0.36711157]
[1646321251007,0.057912,43210.0,43208.0,0.089823]
[1646321251204,0.057912,43210.0,43209.0,0.01157]
[1646321251444,0.057912,43210.0,43204.0,0.357021]
[1646321251645,0.057912,43210.0,43208.0,0.089859]
[1646321251845,0.057912,43210.0,43209.0,0.01157]
[1646321252045,0.057912,43210.0,43209.0,0.368591]
[1646321252248,0.057912,43210.0,43203.0,0.01277634]
[1646321252443,0.057912,43210.0,43204.0,0.01118227]
[1646321252645,0.057912,43210.0,43205.0,0.36813256]
[1646321252843,0.057912,43210.0,43207.0,0.089852]
[1646321253044,0.057912,43210.0,43207.0,0.10100206]
[1646321253847,0.057912,43210.0,43207.0,0.089852]
[1646321254045,0.057912,43210.0,43207.0,0.10304657]
[1646321254246,0.057912,43210.0,43202.0,0.01107028]
[1646321254447,0.057912,43210.0,43202.0,0.003]
[1646321255046,0.057912,43210.0,43203.0,0.27526036]
[1646321255306,0.057912,43210.0,43202.0,0.01226065]
[1646321255508,0.115829,43210.0,43202.0,0.003]
[1646321255704,0.115829,43210.0,43198.0,0.05791129]
[1646321255705,0.140829,43210.0,43198.0,0.05791129]
[1646321255906,0.082912,43210.0,43199.0,0.01096666]
[1646321256108,0.082912,43210.0,43199.0,0.00975771]
[1646321256308,0.082912,43210.0,43205.0,0.16634176]
[1646321256506,0.082912,43210.0,43205.0,0.01399056]
[1646321256707,0.082912,43210.0,43205.0,0.01391446]
[1646321257010,0.1516,43222.0,43207.0,0.01219097]
[1646321257206,0.1516,43222.0,43208.0,0.09935547]
[1646321257408,0.025,43222.0,43209.0,0.00980496]
[1646321257611,1.1063,43230.0,43221.0,0.25805389]
[1646321257612,0.057886,43229.0,43221.0,0.25805389]
[1646321257812,0.279767,43233.0,43219.0,0.1796249]
[1646321257813,8.772e-05,43224.0,43219.0,0.19068688]
[1646321258014,8.772e-05,43224.0,43222.0,0.357003]
[1646321258208,8.772e-05,43224.0,43223.0,0.37072876]
[1646321258407,8.772e-05,43224.0,43223.0,0.357021]
[1646321258609,0.140767,43233.0,43223.0,0.357021]
[1646321258811,0.140767,43233.0,43219.0,0.2223249]
[1646321258812,8.774e-05,43226.0,43219.0,0.0427]
[1646321259051,8.774e-05,43226.0,43220.0,0.63953569]
[1646321259450,8.774e-05,43226.0,43221.0,0.05787841]
[1646321259653,8.774e-05,43226.0,43222.0,0.089674]
[1646321259852,0.140767,43233.0,43219.0,0.0427]
[1646321260051,9.964e-05,43226.0,43219.0,0.0427]
[1646321260251,9.964e-05,43226.0,43213.0,0.21156]
[1646321260252,9.964e-05,43226.0,43213.0,0.01156]
[1646321260456,9.964e-05,43226.0,43214.0,0.004]
[1646321260457,0.357021,43225.0,43214.0,0.004]
[1646321260653,0.2686487,43222.0,43214.0,0.004]
[1646321260851,0.02299,43224.0,43214.0,0.004]
[1646321260852,0.10009964,43226.0,43214.0,0.004]
[1646321261053,0.31708005,43226.0,43214.0,0.18263338]
[1646321261253,9.963e-05,43224.0,43214.0,0.004]
[1646321261651,0.057893,43223.0,43209.0,0.05789275]
[1646321261852,0.115793,43223.0,43200.0,0.4529]
[1646321262053,0.115793,43223.0,43204.0,0.357021]
[1646321262252,0.115793,43223.0,43205.0,0.3]
[1646321262453,0.02299,43222.0,43206.0,0.357021]
[1646321262727,0.22269721,43219.0,43205.0,0.3]
[1646321262922,0.22269721,43219.0,43206.0,0.357021]
[1646321263123,0.24568721,43219.0,43206.0,0.357021]
[1646321263325,0.30359321,43219.0,43202.0,0.16882717]
[1646321263523,0.24568721,43219.0,43203.0,0.357021]
[1646321263922,0.02299,43217.0,43204.0,0.3]
[1646321264128,0.22269721,43219.0,43204.0,0.3]
[1646321264526,0.22269721,43219.0,43203.0,0.3]
[1646321264926,0.22269721,43219.0,43212.0,0.22217918]
[1646321266129,0.22269721,43219.0,43203.0,0.3]
[1646321266328,0.22269721,43219.0,43208.0,0.0578958]
[1646321266537,0.22269721,43219.0,43212.0,0.002]
[1646321266747,0.357021,43218.0,43212.0,0.002]
[1646321266940,0.3,43217.0,43212.0,0.002]
[1646321267138,0.01157,43216.0,43212.0,0.002]
[1646321267738,0.01157,43216.0,43204.0,0.05790126]
[1646321268440,0.01157,43216.0,43208.0,0.2872467]
[1646321268839,0.01157,43216.0,43204.0,0.06190126]
[1646321269042,0.01157,43216.0,43204.0,0.004]
[1646321269243,0.01157,43216.0,43205.0,0.01152286]
[1646321269439,0.01157,43218.0,43204.0,0.004]
[1646321269640,0.01157,43218.0,43205.0,0.00908142]
[1646321269842,0.16479821,43219.0,43212.0,0.2831543]
[1646321270038,0.16479821,43219.0,43201.0,0.057894]
[1646321270039,0.16479821,43219.0,43207.0,0.01376669]
[1646321270288,0.16479821,43219.0,43205.0,0.11578597]
[1646321270289,0.18778821,43219.0,43205.0,0.11578597]
[1646321270494,0.22270121,43219.0,43204.0,0.011667]
[1646321270690,0.16479821,43219.0,43205.0,0.36858926]
[1646321270990,0.16479821,43219.0,43213.0,0.21460142]
[1646321271389,0.16479821,43219.0,43203.0,0.3]
[1646321271589,0.16479821,43219.0,43209.0,0.01004879]
[1646321271796,0.16479821,43219.0,43198.0,0.01397737]
[1646321271797,0.057905,43216.0,43198.0,0.01397737]
[1646321271992,0.05427,43215.0,43195.0,0.21878091]
[1646321272189,0.0427,43214.0,43198.0,0.01253563]
[1646321272391,0.01157,43213.0,43199.0,0.01238868]
[1646321272790,0.01157,43213.0,43199.0,0.0101909]
[1646321272989,0.01157,43213.0,43200.0,0.01160184]
[1646321272990,0.00393304,43212.0,43200.0,0.01160184]
[1646321273193,0.00393304,43212.0,43198.0,0.004]
[1646321273194,0.02299,43210.0,43198.0,0.004]
[1646321273392,0.357021,43205.0,43198.0,0.004]
[1646321273595,0.21265517,43202.0,43198.0,0.004]
[1646321273791,0.357021,43201.0,43198.0,0.004]
[1646321274264,0.1,43200.0,43189.0,0.26140875]
[1646321274463,0.1,43200.0,43181.0,0.01139988]
[1646321274464,0.080922,43198.0,43181.0,0.01139988]
[1646321274660,0.02299,43196.0,43182.0,0.01087484]
[1646321274862,0.33456,43196.0,43183.0,0.01082859]
[1646321275058,0.31157,43196.0,43184.0,0.01292566]
[1646321275259,0.1,43195.0,43185.0,0.17283632]
[1646321275459,0.1,43195.0,43186.0,0.22630415]
[1646321275658,0.357021,43194.0,43185.0,0.17283632]
[1646321275861,0.1,43195.0,43185.0,0.17283632]
[1646321276160,0.1,43195.0,43182.0,0.01090578]
[1646321276161,0.157943,43193.0,43182.0,0.01090578]
[1646321276362,0.157943,43193.0,43180.0,0.003]
[1646321276363,0.43795,43192.0,43180.0,0.003]
[1646321276561,0.357021,43190.0,43180.0,0.01315197]
[1646321276760,0.1427,43189.0,43180.0,0.25272267]
[1646321276962,0.3,43188.0,43180.0,0.01248017]
[1646321277160,0.357021,43187.0,43180.0,0.003]
[1646321277562,0.357021,43185.0,43178.0,0.0011]
[1646321277805,0.4,43184.0,43178.0,0.0011]
[1646321278007,0.357021,43183.0,43178.0,0.0011]
[1646321278204,0.457021,43183.0,43178.0,0.0011]
[1646321278405,0.457021,43183.0,43178.0,0.001]
[1646321279208,0.057948,43182.0,43178.0,0.001]
[1646321279408,0.657021,43181.0,43176.0,0.0883]
[1646321279612,0.1,43180.0,43176.0,0.0883]
[1646321279810,0.357021,43179.0,43176.0,0.0883]
[1646321280009,0.3,43178.0,43176.0,0.0883]
[1646321280210,0.357021,43177.0,43176.0,0.0883]
[1646321280608,0.457021,43177.0,43176.0,0.0883]
[1646321281008,0.004,43179.0,43176.0,0.0883]
[1646321281212,0.004,43179.0,43177.0,0.090191]
[1646321281452,0.004,43179.0,43178.0,0.28294579]
[1646321281655,0.025,43184.0,43178.0,0.28294579]
[1646321281852,0.01157,43189.0,43178.0,0.28294579]
[1646321282055,0.01157,43189.0,43178.0,0.27259908]
[1646321282258,0.025,43190.0,43180.0,0.01167246]
[1646321282455,0.009267,43189.0,43180.0,0.30934559]
[1646321282654,0.025,43190.0,43181.0,0.01280677]
[1646321282853,0.025,43190.0,43182.0,0.01228793]
[1646321283055,0.20847895,43189.0,43178.0,0.27259908]
[1646321283258,0.23146895,43189.0,43176.0,0.0883]
[1646321283656,0.33146895,43189.0,43176.0,0.0883]
[1646321283857,0.38941495,43189.0,43176.0,0.0883]
[1646321284057,0.357021,43188.0,43176.0,0.0883]
[1646321284261,0.173867,43185.0,43176.0,0.0883]
[1646321284458,0.19256962,43179.0,43176.0,0.0883]
[1646321284658,0.357021,43178.0,43176.0,0.0883]
[1646321285058,0.39216123,43181.0,43176.0,0.0883]
[1646321285059,0.125,43181.0,43176.0,0.0883]
[1646321285303,0.1,43186.0,43176.0,0.0883]
[1646321285505,0.357021,43185.0,43176.0,0.0883]
[1646321285902,0.125,43186.0,43176.0,0.0883]
[1646321286103,0.357021,43185.0,43176.0,0.0844]
[1646321286904,0.115906,43184.0,43176.0,0.0844]
[1646321287104,0.025,43186.0,43176.0,0.0844]
[1646321287303,0.125,43186.0,43176.0,0.0844]
[1646321287514,0.67983367,43185.0,43176.0,0.0844]
[1646321287705,0.24050909,43177.0,43176.0,0.0844]
[1646321287904,0.0427,43177.0,43176.0,0.0844]
[1646321288103,0.457692,43177.0,43176.0,0.0844]
[1646321288303,0.86162504,43177.0,43176.0,0.0844]
[1646321288974,1.0,43176.0,43169.0,0.0011]
[1646321289182,0.530959,43172.0,43169.0,0.0011]
[1646321289476,0.357021,43170.0,43169.0,0.0011]
[1646321289674,0.357021,43170.0,43164.0,0.0011]
[1646321289675,1.0,43169.0,43164.0,0.0011]
[1646321289876,0.14,43165.0,43164.0,0.0011]
[1646321290180,0.14,43165.0,43163.0,0.0022]
[1646321290181,1.207021,43164.0,43163.0,0.0022]
[1646321290377,1.249721,43164.0,43163.0,0.0022]
[1646321290577,1.349721,43164.0,43163.0,0.0022]
[1646321290780,1.35365404,43164.0,43163.0,0.0022]
[1646321290978,0.357021,43163.0,43160.0,0.0022]
[1646321291178,0.357021,43163.0,43149.0,0.4163]
[1646321291179,0.057998,43160.0,43149.0,0.4163]
[1646321291379,0.057998,43160.0,43149.0,0.2524]
[1646321291380,1.0,43157.0,43149.0,0.2524]
[1646321291578,1.0,43157.0,43141.0,0.0111]
[1646321291579,0.71209681,43156.0,43141.0,0.0111]
[1646321291777,0.496036,43153.0,43138.0,0.00115907]
[1646321292077,0.496036,43153.0,43135.0,0.4174]
[1646321292078,0.357021,43147.0,43135.0,0.0011]
[1646321292276,0.258713,43146.0,43135.0,0.0011]
[1646321292713,0.1427,43146.0,43135.0,0.0011]
[1646321293506,0.0427,43146.0,43141.0,0.27578436]
[1646321293707,0.0427,43146.0,43141.0,0.44668977]
[1646321293909,0.07037431,43159.0,43142.0,0.357021]
[1646321294110,0.02299,43158.0,43141.0,0.44668977]
[1646321294307,0.357021,43155.0,43141.0,0.44668977]
[1646321294507,0.1633993,43156.0,43142.0,0.002]
[1646321294508,0.2060993,43156.0,43142.0,0.002]
[1646321294708,0.0427,43155.0,43142.0,0.002]
[1646321294908,0.357021,43153.0,43142.0,0.002]
[1646321295107,0.06569,43155.0,43142.0,0.002]
[1646321295311,0.380011,43154.0,43142.0,0.002]
[1646321295507,0.138986,43154.0,43142.0,0.002]
[1646321295708,0.357021,43152.0,43147.0,0.20382584]
[1646321296109,0.025,43155.0,43150.0,0.2]
[1646321296309,0.173978,43172.0,43151.0,0.31096261]
[1646321296310,0.65408,43168.0,43151.0,0.31096261]
[1646321296554,0.65408,43168.0,43151.0,0.01137898]
[1646321296555,0.003,43152.0,43151.0,0.01137898]
[1646321296756,0.003,43152.0,43149.0,0.18621474]
[1646321296956,0.057983,43161.0,43152.0,0.006]
[1646321297156,0.057983,43161.0,43152.0,0.31614448]
[1646321297354,0.057983,43161.0,43153.0,0.01184303]
[1646321297555,0.03658,43168.0,43152.0,0.306]
[1646321297556,0.03658,43168.0,43159.0,0.2]
[1646321297755,0.2116,43170.0,43163.0,0.20414911]
[1646321297756,0.05,43170.0,43163.0,0.20414911]
[1646321297958,0.1613,43174.0,43164.0,0.357021]
[1646321298153,0.07566428,43177.0,43163.0,0.20414911]
[1646321298353,0.03457,43182.0,43163.0,0.20414911]
[1646321298558,0.03457,43182.0,43163.0,0.50614911]
[1646321298559,0.02299,43176.0,43163.0,0.50614911]
[1646321298754,0.15742057,43177.0,43168.0,0.17248984]
[1646321298955,0.15742057,43177.0,43170.0,0.23818646]
[1646321299353,0.00928659,43176.0,43170.0,0.23818646]
[1646321299954,0.00928659,43176.0,43165.0,0.2]
[1646321300209,0.00928659,43176.0,43171.0,0.2175003]
[1646321300406,0.00928659,43176.0,43166.0,0.3]
[1646321300609,0.00928659,43176.0,43161.0,0.01122124]
[1646321300806,0.00928659,43176.0,43167.0,0.2]
[1646321301005,0.00928659,43176.0,43163.0,0.01363223]
[1646321301208,0.00928659,43176.0,43167.0,0.2]
[1646321301406,0.00928659,43176.0,43175.0,0.16431389]
[1646321301611,0.00928659,43176.0,43175.0,0.52133489]
[1646321302005,0.00928659,43176.0,43166.0,0.0427]
[1646321302209,0.00928659,43176.0,43159.0,0.01158]
[1646321302210,0.357021,43175.0,43159.0,0.01158]
[1646321302406,0.057965,43173.0,43157.0,0.2]
[1646321302606,0.115956,43169.0,43155.0,0.01158]
[1646321302805,0.115956,43169.0,43157.0,0.2]
[1646321303005,0.04799,43172.0,43153.0,0.3]
[1646321303006,0.20376615,43172.0,43153.0,0.45]
[1646321303210,0.20376615,43172.0,43159.0,0.2]
[1646321303405,0.357021,43171.0,43159.0,0.2]
[1646321303604,0.20376615,43172.0,43159.0,0.2]
[1646321304454,0.63261498,43171.0,43159.0,0.2]
[1646321304652,0.357021,43171.0,43159.0,0.2]
[1646321304853,0.02299,43168.0,43154.0,0.005]
[1646321305056,0.357021,43167.0,43156.0,0.2164079]
[1646321305252,0.1,43166.0,43156.0,0.2164079]
[1646321305454,0.057982,43164.0,43156.0,0.2164079]
[1646321305652,0.357021,43163.0,43156.0,0.2164079]
[1646321305856,0.1,43162.0,43156.0,0.2164079]
[1646321306152,0.02086659,43167.0,43156.0,0.2164079]
[1646321306353,0.00928659,43167.0,43157.0,0.3]
[1646321306653,0.00928659,43167.0,43159.0,0.01344867]
[1646321306852,0.00928659,43167.0,43160.0,0.357021]
[1646321307055,0.00928659,43167.0,43161.0,0.24380502]
[1646321307357,0.00928659,43167.0,43166.0,0.17270886]
[1646321307818,0.05,43175.0,43167.0,1.0]
[1646321308010,0.05,43185.0,43173.0,0.2]
[1646321308209,0.090936,43189.0,43173.0,0.1998363]
[1646321308412,0.02299,43184.0,43170.0,0.3]
[1646321308608,0.18683671,43184.0,43168.0,0.21230817]
[1646321308806,0.18683671,43184.0,43169.0,0.01223224]
[1646321309007,0.18683671,43184.0,43170.0,0.01052032]
[1646321309208,0.18683671,43184.0,43168.0,0.1998363]
[1646321309209,0.057955,43182.0,43168.0,0.1998363]
[1646321309409,0.057955,43182.0,43169.0,0.01141729]
[1646321309410,0.357021,43181.0,43169.0,0.01141729]
[1646321309608,0.357021,43181.0,43173.0,0.27252955]
[1646321309807,0.3,43181.0,43157.0,0.02299]
[1646321310008,0.3,43181.0,43161.0,0.68232454]
[1646321310209,0.03457,43180.0,43162.0,0.00958491]
[1646321310507,0.03457,43180.0,43161.0,0.1998363]
[1646321310508,0.15838817,43177.0,43161.0,0.2048363]
[1646321310706,0.3,43176.0,43165.0,0.1741294]
[1646321310910,0.3,43176.0,43167.0,0.22552794]
[1646321311108,0.1,43176.0,43165.0,0.1741294]
[1646321311552,0.1,43176.0,43161.0,0.2182506]
[1646321311553,0.4,43176.0,43161.0,0.2182506]
[1646321311753,0.18192834,43170.0,43161.0,0.1998363]
[1646321311954,0.657021,43169.0,43155.0,0.01158]
[1646321312152,0.657021,43169.0,43152.0,0.28106278]
[1646321312153,0.080967,43167.0,43152.0,0.28106278]
[1646321312352,0.722711,43166.0,43152.0,0.168173]
[1646321312552,0.72664369,43166.0,43152.0,0.168173]
[1646321312754,0.1,43165.0,43152.0,0.168173]
[1646321313155,0.22020678,43160.0,43150.0,0.01568591]
[1646321313355,0.01158,43164.0,43150.0,0.004]
[1646321313560,0.01158,43164.0,43150.0,0.0177117]
[1646321313757,0.01158,43164.0,43151.0,0.00978276]
[1646321313955,0.00015738,43163.0,43148.0,0.05797676]
[1646321314156,0.00015738,43163.0,43152.0,0.19356902]
[1646321314356,0.00015738,43163.0,43150.0,0.01065647]
[1646321314557,0.00015738,43163.0,43148.0,0.06497676]
[1646321314855,0.00015738,43163.0,43148.0,0.007]
[1646321314856,0.20371344,43162.0,43148.0,0.007]
[1646321315057,0.3,43161.0,43148.0,0.0179289]
[1646321315339,0.42299,43161.0,43148.0,0.007]
[1646321315535,0.22090129,43153.0,43149.0,0.24882387]
[1646321315731,0.22090129,43153.0,43148.0,0.007]
[1646321315932,0.22090129,43153.0,43147.0,0.00969239]
[1646321316133,0.357021,43157.0,43142.0,0.02364057]
[1646321316330,0.1,43157.0,43143.0,0.01072303]
[1646321316531,0.1,43157.0,43147.0,0.18672209]
[1646321316532,0.01158,43156.0,43147.0,0.18672209]
[1646321316733,0.357021,43155.0,43145.0,0.01151367]
[1646321316929,0.357021,43155.0,43142.0,0.01458]
[1646321316930,0.3,43154.0,43142.0,0.0270862]
[1646321317130,0.23476149,43151.0,43142.0,0.01458]
[1646321317330,0.1,43153.0,43142.0,0.01458]
[1646321317731,0.1,43153.0,43146.0,0.21782738]
[1646321318132,0.1,43153.0,43142.0,0.02525522]
[1646321318332,0.57317171,43152.0,43142.0,0.01158]
[1646321318635,0.325,43152.0,43146.0,0.003]
[1646321318832,0.025,43152.0,43146.0,0.003]
[1646321319061,0.01158,43155.0,43148.0,0.1697767]
[1646321319257,0.01158,43155.0,43148.0,0.22775408]
[1646321319457,0.31158,43155.0,43149.0,0.28439382]
[1646321319662,0.01158,43155.0,43149.0,0.28439382]
[1646321320060,0.00015738,43156.0,43149.0,0.29243711]
[1646321320258,0.00015738,43156.0,43150.0,0.01294725]
[1646321320462,0.00015738,43156.0,43151.0,0.3679582]
[1646321320763,0.00015738,43154.0,43153.0,0.090493]
[1646321320961,0.00015738,43154.0,43153.0,0.10002508]
[1646321321163,0.00015738,43154.0,43153.0,0.390493]
[1646321321563,0.00015738,43154.0,43153.0,0.113483]
[1646321321760,0.00015738,43154.0,43153.0,0.413483]
[1646321321962,0.03733379,43163.0,43155.0,0.02299]
[1646321322161,0.03733379,43163.0,43154.0,1.0]
[1646321322162,0.01158,43169.0,43156.0,0.379969]
[1646321322364,0.26851521,43173.0,43157.0,0.3]
[1646321322365,0.01158,43172.0,43157.0,0.3]
[1646321322561,0.22265099,43171.0,43158.0,0.17441291]
[1646321322797,0.01158,43170.0,43158.0,0.16224138]
[1646321323599,0.23423099,43171.0,43161.0,0.26421994]
[1646321323800,0.33423099,43171.0,43158.0,0.18523138]
[1646321324001,0.33423099,43171.0,43159.0,0.02299]
[1646321324198,0.22265099,43171.0,43159.0,0.02299]
[1646321324398,0.1,43170.0,43158.0,0.16224138]
[1646321324599,0.22265099,43171.0,43159.0,0.02299]
[1646321324798,0.22265099,43171.0,43158.0,0.16224138]
[1646321325002,0.357021,43170.0,43153.0,0.004]
[1646321325201,0.41158,43169.0,43153.0,0.004]
[1646321325399,0.4,43169.0,43153.0,0.004]
[1646321325598,0.01158,43168.0,43154.0,0.357021]
[1646321325799,0.22880437,43162.0,43149.0,0.03758031]
[1646321326000,0.22880437,43162.0,43155.0,0.16057026]
[1646321326199,0.22880437,43162.0,43156.0,0.090491]
[1646321326654,0.3,43166.0,43156.0,0.090491]
[1646321326953,0.3,43166.0,43152.0,0.380011]
[1646321327152,0.3,43166.0,43160.0,0.18920971]
[1646321327356,0.057978,43163.0,43152.0,0.02299]
[1646321327553,0.3,43162.0,43154.0,0.357021]
[1646321327754,0.125,43162.0,43150.0,0.005]
[1646321327956,0.125,43162.0,43151.0,0.357021]
[1646321328154,0.125,43162.0,43147.0,0.05797175]
[1646321328155,0.1,43162.0,43147.0,0.05797175]
[1646321328356,0.1,43162.0,43153.0,0.380004]
[1646321328558,0.1,43162.0,43153.0,0.357014]
[1646321328762,0.1,43162.0,43159.0,0.20392493]
[1646321328963,0.11158,43166.0,43159.0,0.20392493]
[1646321329357,0.357021,43165.0,43159.0,0.36943687]
[1646321329560,0.01158,43168.0,43159.0,0.39242687]
[1646321329758,0.01158,43172.0,43166.0,0.21717524]
[1646321329960,0.01158,43172.0,43159.0,0.16551194]
[1646321330210,0.115929,43174.0,43159.0,0.16551194]
[1646321330211,0.31158,43173.0,43159.0,0.16551194]
[1646321330412,0.01158,43173.0,43160.0,0.02299]
[1646321330610,0.01158,43173.0,43159.0,0.17051194]
[1646321330811,0.31158,43173.0,43159.0,0.17051194]
[1646321331010,0.22792043,43170.0,43159.0,0.005]
[1646321331211,0.057972,43168.0,43149.0,0.5371]
[1646321331411,0.01158,43167.0,43154.0,0.00932562]
[1646321331613,0.357021,43166.0,43154.0,0.01051408]
[1646321331811,0.357021,43166.0,43142.0,0.01228361]
[1646321331812,0.357021,43164.0,43142.0,0.01228361]
[1646321332011,0.24679884,43162.0,43158.0,0.22214987]
[1646321332211,0.357021,43161.0,43147.0,0.01011153]
[1646321332412,0.3,43160.0,43147.0,0.01024803]
[1646321332610,0.4,43160.0,43149.0,0.02299]
[1646321332809,0.3,43160.0,43149.0,0.03693656]
[1646321333010,0.01158,43161.0,43150.0,0.03238331]
[1646321333212,0.01158,43161.0,43157.0,0.22412064]
[1646321333410,0.125,43164.0,43157.0,0.22412064]
[1646321333411,0.01158,43163.0,43157.0,0.22412064]
[1646321333613,0.01158,43163.0,43158.0,0.17498777]
[1646321333810,0.1,43164.0,43158.0,0.17498777]
[1646321334048,0.01158,43169.0,43158.0,0.17498777]
[1646321334253,0.357021,43168.0,43157.0,0.2369928]
[1646321334447,0.01158,43169.0,43157.0,0.2369928]
[1646321334648,0.01658,43169.0,43157.0,0.2369928]
[1646321334848,0.005,43169.0,43159.0,0.01248416]
[1646321335047,0.357021,43168.0,43157.0,0.22412064]
[1646321335248,0.25979613,43166.0,43158.0,0.01209323]
[1646321335448,0.25979613,43166.0,43159.0,0.01005668]
[1646321335647,0.025,43168.0,43157.0,0.22412064]
[1646321335648,0.357021,43167.0,43157.0,0.22412064]
[1646321335849,0.1,43166.0,43160.0,0.01368496]
[1646321336049,0.1,43166.0,43157.0,0.2371594]
[1646321336349,0.057969,43170.0,43158.0,0.01278518]
[1646321336548,0.057969,43170.0,43154.0,0.02299]
[1646321336549,0.01158,43169.0,43159.0,0.00968445]
[1646321336753,0.057969,43170.0,43160.0,0.01120649]
[1646321337051,0.057969,43170.0,43160.0,0.01094536]
[1646321337254,0.20390039,43167.0,43161.0,0.00911595]
[1646321337449,0.004,43171.0,43154.0,0.01282714]
[1646321337717,0.357021,43170.0,43161.0,0.18070219]
[1646321337923,0.357021,43172.0,43161.0,0.18070219]
[1646321338117,0.025,43173.0,43161.0,0.18070219]
[1646321338118,0.368601,43171.0,43161.0,0.18070219]
[1646321338318,0.2602162,43166.0,43162.0,0.24747081]
[1646321338519,0.157969,43170.0,43162.0,0.24747081]
[1646321338717,0.157969,43170.0,43162.0,0.25913219]
[1646321338918,0.157969,43170.0,43162.0,0.24747081]
[1646321339322,0.1,43170.0,43163.0,0.3]
[1646321339519,0.01458,43172.0,43162.0,0.24747081]
[1646321339720,0.003,43172.0,43163.0,0.390353]
[1646321339920,0.11158,43177.0,43163.0,0.390353]
[1646321340119,0.01158,43177.0,43163.0,0.3]
[1646321340318,0.025,43178.0,43169.0,0.01154003]
[1646321340523,0.025,43178.0,43174.0,0.26818847]
[1646321341119,0.11606393,43183.0,43174.0,0.26818847]
[1646321341120,0.14106393,43183.0,43174.0,0.26818847]
[1646321341318,0.01157,43188.0,43174.0,0.26818847]
[1646321341554,0.357021,43187.0,43178.0,0.20785003]
[1646321341751,0.01157,43186.0,43174.0,0.26818847]
[1646321341953,0.01157,43187.0,43174.0,0.26818847]
[1646321342149,0.1724436,43181.0,43178.0,0.01384229]
[1646321342350,0.1724436,43181.0,43174.0,0.26818847]
[1646321342549,0.357021,43180.0,43174.0,0.26918847]
[1646321342750,0.01157,43184.0,43176.0,0.01338674]